bitfinex/quotes_BTCUSD_20250124
["timestamp","ask_amount","ask_price","bid_price","bid_amount"]
[1737688412070,0.00029883,103150.0,103140.0,0.8422898]
[1737688412350,0.00029883,103150.0,103140.0,0.8482898]
[1737688412556,0.00029883,103150.0,103140.0,0.8980898]
[1737688413009,0.00029883,103150.0,103140.0,0.8920898]
[1737688413217,0.00029883,103150.0,103140.0,0.8900898]
[1737688413434,0.00029883,103150.0,103140.0,0.80738641]
[1737688413688,0.00029883,103150.0,103140.0,0.80838641]
[1737688413897,0.00029883,103150.0,103140.0,0.80438641]
[1737688414099,0.00029883,103150.0,103140.0,0.80338641]
[1737688414455,0.00029883,103150.0,103140.0,0.80538641]
[1737688415228,0.00029883,103150.0,103140.0,0.81138641]
[1737688415667,0.00029883,103150.0,103140.0,1.13438641]
[1737688416611,0.00029883,103150.0,103140.0,1.15738641]
[1737688417904,0.00029883,103150.0,103140.0,1.13438641]
[1737688418696,0.00029883,103150.0,103140.0,0.83438641]
[1737688419630,0.00029883,103150.0,103140.0,0.82638641]
[1737688419835,0.00029883,103150.0,103140.0,0.83438641]
[1737688421269,0.00029883,103150.0,103140.0,1.13438641]
[1737688423690,0.00029883,103150.0,103140.0,1.13238641]
[1737688424095,0.00029883,103150.0,103140.0,1.13438641]
[1737688425341,0.00029883,103150.0,103140.0,1.12838641]
[1737688425755,0.00029883,103150.0,103140.0,1.13438641]
[1737688428874,0.09724483,103150.0,103140.0,0.78458641]
[1737688429077,0.00029883,103150.0,103140.0,0.78458641]
[1737688429267,0.09724483,103150.0,103140.0,0.78458641]
[1737688429456,0.00029883,103150.0,103140.0,0.78458641]
[1737688429848,0.00029883,103150.0,103140.0,0.78258641]
[1737688430264,0.00029883,103150.0,103140.0,0.78358641]
[1737688430932,0.67788483,103160.0,103140.0,0.82749641]
[1737688431156,0.29026135,103160.0,103150.0,0.24734729]
[1737688432394,0.29026135,103160.0,103150.0,0.24834729]
[1737688434334,0.29026135,103160.0,103150.0,0.27852774]
[1737688436314,0.30013137,103160.0,103150.0,0.27852774]
[1737688437988,0.40825224,103160.0,103150.0,0.27852774]
[1737688438120,0.45795224,103160.0,103150.0,0.27852774]
[1737688438323,0.34983137,103160.0,103150.0,0.27852774]
[1737688439233,0.53485224,103160.0,103150.0,0.27852774]
[1737688440604,0.53515107,103160.0,103150.0,0.27852774]
[1737688447547,0.45825107,103160.0,103150.0,0.27852774]
[1737688447746,0.3004302,103160.0,103150.0,0.27852774]
[1737688449583,0.29942224,103160.0,103150.0,0.27852774]
[1737688452015,0.40754311,103160.0,103150.0,0.27852774]
[1737688452339,0.40754311,103160.0,103150.0,0.27867004]
[1737688452533,0.40754311,103160.0,103150.0,0.09848959]
[1737688452939,0.40754311,103160.0,103150.0,0.24848959]
[1737688460496,0.40754311,103160.0,103150.0,0.27872553]
[1737688460685,0.40754311,103160.0,103150.0,0.24848959]
[1737688461726,0.40754311,103160.0,103150.0,0.27872924]
[1737688461847,0.40754311,103160.0,103150.0,0.24848959]
[1737688462489,0.40754311,103160.0,103150.0,0.27873472]
[1737688462893,0.29942224,103160.0,103150.0,0.27873472]
[1737688464100,0.40754311,103160.0,103150.0,0.27873472]
[1737688467892,0.40754311,103160.0,103150.0,0.36193472]
[1737688468022,0.29942224,103160.0,103150.0,0.36193472]
[1737688469676,0.40754311,103160.0,103150.0,0.36193472]
[1737688469886,0.29942224,103160.0,103150.0,0.36193472]
[1737688470287,0.01031337,103160.0,103150.0,0.45888072]
[1737688471132,0.21537024,103160.0,103150.0,0.36193472]
[1737688473780,0.10724937,103160.0,103150.0,0.36193472]
[1737688474343,0.10724937,103160.0,103150.0,0.45888072]
[1737688474555,0.00044335,103160.0,103150.0,0.45888072]
[1737688474758,0.09737935,103160.0,103150.0,0.764562]
[1737688475079,0.09737935,103160.0,103150.0,0.667616]
[1737688478168,0.09737935,103160.0,103150.0,0.764562]
[1737688478648,0.09737935,103160.0,103150.0,0.667616]
[1737688478896,0.00044335,103160.0,103150.0,0.764562]
[1737688480453,0.09737935,103160.0,103150.0,0.764562]
[1737688480865,0.00044335,103160.0,103150.0,0.764562]
[1737688481249,0.00044335,103160.0,103150.0,1.064562]
[1737688481462,0.00044335,103160.0,103150.0,0.914562]
[1737688485109,0.00044335,103160.0,103150.0,1.00126539]
[1737688487031,0.00044335,103160.0,103150.0,1.32426539]
[1737688497780,0.00044335,103160.0,103150.0,1.32326539]
[1737688498188,0.00044335,103160.0,103150.0,1.32926539]
[1737688499615,0.00044335,103160.0,103150.0,1.33126539]
[1737688499969,0.00044335,103160.0,103150.0,1.35426539]
[1737688500206,0.00044335,103160.0,103150.0,1.40286539]
[1737688500408,0.09737935,103160.0,103150.0,1.33126539]
[1737688500613,0.20550022,103160.0,103150.0,0.93431939]
[1737688500793,0.20550022,103160.0,103150.0,0.85111939]
[1737688501208,0.09737935,103160.0,103150.0,0.85111939]
[1737688501379,0.09737935,103160.0,103150.0,0.84511939]
[1737688501791,0.09737935,103160.0,103150.0,0.94406539]
[1737688502003,0.00044335,103160.0,103150.0,1.02716539]
[1737688502383,0.00044335,103160.0,103150.0,1.02816539]
[1737688508218,0.00044335,103160.0,103150.0,0.941462]
[1737688508417,0.09737935,103160.0,103150.0,0.941462]
[1737688509701,0.00044335,103160.0,103150.0,0.941462]
[1737688512918,0.09737935,103160.0,103150.0,0.941462]
[1737688513094,0.00044335,103160.0,103150.0,0.941462]
[1737688513956,0.09737935,103160.0,103150.0,0.941462]
[1737688514338,0.00044335,103160.0,103150.0,0.941462]
[1737688514943,0.09737935,103160.0,103150.0,0.941462]
[1737688515852,0.09737935,103160.0,103150.0,0.761416]
[1737688516064,0.20550022,103160.0,103150.0,0.858362]
[1737688516263,0.09737935,103160.0,103150.0,0.858362]
[1737688516786,0.00044335,103160.0,103150.0,0.858362]
[1737688517453,0.09737935,103160.0,103150.0,0.858362]
[1737688517658,0.09737935,103160.0,103150.0,0.761416]
[1737688518634,0.09737935,103160.0,103150.0,0.858362]
[1737688520616,0.09737935,103160.0,103150.0,0.761416]
[1737688521462,0.09737935,103160.0,103150.0,0.858362]
[1737688521796,0.25360022,103160.0,103150.0,0.761416]
[1737688521998,0.27660022,103160.0,103150.0,0.13273472]
[1737688522636,0.27660022,103160.0,103150.0,0.10248959]
[1737688523022,0.27660022,103160.0,103150.0,0.13272607]
[1737688523484,0.27660022,103160.0,103150.0,0.10248959]
[1737688524092,0.35870022,103160.0,103150.0,0.10248959]
[1737688525187,0.3685149,103160.0,103150.0,0.10248959]
[1737688529274,0.3685149,103160.0,103150.0,0.09848959]
[1737688529701,0.3685149,103160.0,103150.0,0.09948959]
[1737688529862,0.2864149,103160.0,103150.0,0.09848959]
[1737688530071,0.2864149,103160.0,103150.0,0.09948959]
[1737688530571,0.2864149,103160.0,103150.0,0.09848959]
[1737688532701,0.2864149,103160.0,103150.0,0.12869752]
[1737688532851,0.15529403,103160.0,103150.0,0.12869752]
[1737688533474,0.2634149,103160.0,103150.0,0.12869752]
[1737688533762,0.01025803,103160.0,103150.0,0.6102248]
[1737688533969,0.10719403,103160.0,103150.0,0.6102248]
[1737688535955,0.09737935,103160.0,103150.0,0.6102248]
[1737688536155,0.00044335,103160.0,103150.0,0.6102248]
[1737688536700,0.00044335,103160.0,103150.0,0.6555248]
[1737688541430,0.00044335,103160.0,103150.0,0.8055248]
[1737688546150,0.00044335,103160.0,103150.0,0.7602248]
[1737688546381,0.25260022,103160.0,103150.0,0.5843788]
[1737688546591,0.25260022,103160.0,103150.0,0.12869752]
[1737688546811,0.25260022,103160.0,103150.0,0.27869752]
[1737688548449,0.25260022,103160.0,103150.0,0.24848959]
[1737688548654,0.27560022,103160.0,103150.0,0.24848959]
[1737688553449,0.09737935,103160.0,103150.0,0.32918959]
[1737688553708,0.09737935,103160.0,103150.0,0.35940403]
[1737688554216,0.00044335,103160.0,103150.0,0.45635003]
[1737688554631,0.00044335,103160.0,103150.0,0.76203131]
[1737688554632,0.09737935,103160.0,103150.0,0.76203131]
[1737688554834,0.20550022,103160.0,103150.0,0.66508531]
[1737688555059,0.20550022,103160.0,103150.0,0.27870403]
[1737688556378,0.22850022,103160.0,103150.0,0.27870403]
[1737688557672,0.30550022,103160.0,103150.0,0.24848959]
[1737688558300,0.35120022,103160.0,103150.0,0.1511423]
[1737688560580,0.56661231,103160.0,103150.0,0.0011423]
[1737688560820,0.55666838,103160.0,103150.0,0.0011423]
[1737688561016,0.35077587,103140.0,103130.0,0.08670339]
[1737688561147,0.45889674,103140.0,103130.0,0.08670339]
[1737688561963,0.36194174,103140.0,103120.0,0.23684559]
[1737688562284,0.20508487,103130.0,103120.0,0.33419288]
[1737688562455,0.30203987,103140.0,103120.0,0.51185988]
[1737688562652,0.290874,103140.0,103130.0,0.09734729]
[1737688563129,0.39899487,103140.0,103130.0,0.35823985]
[1737688563707,0.096955,103140.0,103130.0,0.45520385]
[1737688563855,0.42197487,103150.0,103140.0,0.15]
[1737688564060,0.42197487,103150.0,103140.0,0.24734729]
[1737688565066,0.42197487,103150.0,103140.0,0.09734729]
[1737688565227,0.43166011,103150.0,103140.0,0.09734729]
[1737688565432,0.30053924,103150.0,103140.0,0.09734729]
[1737688565631,0.30053924,103150.0,103140.0,0.32804729]
[1737688566218,0.30353924,103150.0,103140.0,0.32804729]
[1737688566463,0.41166011,103150.0,103140.0,0.32804729]
[1737688567339,0.293854,103150.0,103140.0,0.63372857]
[1737688568150,0.09995,103150.0,103140.0,0.73068357]
[1737688568999,0.10024862,103150.0,103140.0,0.63372857]
[1737688569209,0.20836949,103150.0,103140.0,0.63372857]
[1737688569414,0.20736949,103150.0,103140.0,0.63372857]
[1737688569616,0.20536949,103150.0,103140.0,0.63372857]
[1737688569865,0.20536949,103150.0,103140.0,0.63472857]
[1737688571528,0.20536949,103150.0,103140.0,0.32904729]
[1737688571700,0.20536949,103150.0,103140.0,0.24834729]
[1737688571896,0.27376949,103150.0,103140.0,0.24834729]
[1737688572684,0.35626949,103150.0,103140.0,0.24734729]
[1737688572884,0.35726949,103150.0,103140.0,0.24734729]
[1737688573094,0.35926949,103150.0,103140.0,0.15]
[1737688573297,0.46739036,103150.0,103140.0,0.15]
[1737688573501,0.35926949,103150.0,103140.0,0.15]
[1737688575219,0.27676949,103150.0,103140.0,0.24734729]
[1737688575416,0.23136949,103150.0,103140.0,0.24734729]
[1737688577248,0.23136949,103150.0,103140.0,0.15]
[1737688577803,0.35656949,103150.0,103140.0,0.15]
[1737688578008,0.46469036,103150.0,103140.0,0.15]
[1737688578213,0.49356645,103150.0,103140.0,0.15]
[1737688578431,0.38544558,103150.0,103140.0,0.15]
[1737688579447,0.35656949,103150.0,103140.0,0.15]
[1737688580440,0.35656949,103150.0,103140.0,0.1501422]
[1737688580644,0.38544558,103150.0,103140.0,0.1501422]
[1737688581468,0.49356645,103150.0,103140.0,0.1501422]
[1737688582601,0.69820496,103150.0,103140.0,2e-07]
[1737688582993,0.70826103,103150.0,103140.0,2e-07]
[1737688583192,0.37278487,103130.0,103120.0,0.0001422]
[1737688583703,0.3827288,103130.0,103120.0,0.00269515]
[1737688585959,0.3867288,103130.0,103120.0,0.00369515]
[1737688586173,0.3897288,103130.0,103120.0,0.00369515]
[1737688586378,0.48707609,103130.0,103120.0,0.00369515]
[1737688586587,0.59519696,103130.0,103120.0,1.5e-07]
[1737688586804,0.27471793,103120.0,103110.0,5.5e-07]
[1737688587009,0.58830696,103120.0,103110.0,5.5e-07]
[1737688587217,0.91560696,103120.0,103110.0,5.5e-07]
[1737688588039,0.91565662,103120.0,103110.0,5.5e-07]
[1737688588246,0.92165662,103120.0,103110.0,5.5e-07]
[1737688589555,0.221793,103100.0,103090.0,0.00012275]
[1737688589837,0.35291387,103100.0,103090.0,0.00012275]
[1737688590048,0.46020509,103100.0,103090.0,7.5e-07]
[1737688590215,0.55838203,103100.0,103090.0,7.5e-07]
[1737688590416,0.33625374,103080.0,103070.0,0.0001423]
[1737688590756,0.38585374,103080.0,103070.0,0.0001423]
[1737688591582,0.46475374,103080.0,103070.0,0.0001423]
[1737688591791,0.46480337,103080.0,103070.0,0.0001423]
[1737688592161,0.46680337,103080.0,103070.0,0.0001423]
[1737688592735,0.59809459,103080.0,103070.0,3e-07]
[1737688594017,0.58815066,103080.0,103070.0,3e-07]
[1737688594223,0.39190337,103080.0,103070.0,3e-07]
[1737688594359,0.41088307,103080.0,103070.0,3e-07]
[1737688594565,0.43088307,103080.0,103070.0,3e-07]
[1737688595425,0.41088307,103080.0,103070.0,3e-07]
[1737688596061,0.41088307,103080.0,103070.0,0.0773003]
[1737688596062,0.2341825,103080.0,103070.0,0.0773003]
[1737688596387,0.2111825,103080.0,103070.0,0.0773003]
[1737688596592,0.2111825,103080.0,103070.0,0.17464759]
[1737688596795,0.10306163,103080.0,103070.0,0.32464759]
[1737688597027,0.13598266,103080.0,103070.0,0.32464759]
[1737688597238,0.00404963,103080.0,103070.0,0.32464759]
[1737688597451,0.00404963,103080.0,103070.0,0.42166859]
[1737688597657,4.963e-05,103080.0,103070.0,0.42166859]
[1737688597861,0.00104963,103080.0,103070.0,0.42166859]
[1737688598069,0.09806163,103080.0,103070.0,0.42166859]
[1737688598513,0.00104963,103080.0,103070.0,0.42166859]
[1737688598737,0.09806163,103080.0,103070.0,0.42166859]
[1737688599135,0.00104963,103080.0,103070.0,0.32464759]
[1737688599384,0.09806163,103080.0,103070.0,0.42166859]
[1737688600328,0.00104963,103080.0,103070.0,0.42166859]
[1737688600646,0.00104963,103080.0,103070.0,0.46926859]
[1737688601630,4.963e-05,103080.0,103070.0,0.46926859]
[1737688601830,4.963e-05,103080.0,103070.0,0.47126859]
[1737688602044,4.963e-05,103080.0,103070.0,0.47626859]
[1737688604643,0.00034867,103080.0,103070.0,0.47626859]
[1737688607515,0.09736067,103080.0,103070.0,0.4093017]
[1737688607736,0.09736067,103080.0,103070.0,0.37924759]
[1737688607891,0.09736067,103080.0,103070.0,0.47626859]
[1737688609789,0.00034867,103080.0,103070.0,0.47626859]
[1737688610779,0.09736067,103080.0,103070.0,0.47626859]
[1737688611309,0.00034867,103080.0,103070.0,0.47626859]
[1737688611522,0.00034867,103080.0,103070.0,0.50635697]
[1737688611902,0.09736067,103080.0,103070.0,0.50635697]
[1737688612102,0.09736067,103080.0,103070.0,0.47626859]
[1737688612303,0.00034867,103080.0,103070.0,0.47626859]
[1737688612750,0.00034867,103080.0,103070.0,0.50636903]
[1737688613210,0.09736067,103080.0,103070.0,0.50636903]
[1737688614583,0.00034867,103080.0,103070.0,0.50636903]
[1737688615485,0.00034867,103080.0,103070.0,0.80636903]
[1737688617915,0.00034867,103080.0,103070.0,0.50636903]
[1737688618130,0.00034867,103080.0,103070.0,0.80636903]
[1737688622611,0.00034867,103080.0,103070.0,1.38737681]
[1737688623852,0.00034867,103080.0,103070.0,2.25047681]
[1737688624067,0.00034867,103080.0,103070.0,2.26047681]
[1737688624715,0.096977,103120.0,103110.0,0.325583]
[1737688624916,4.98e-05,103120.0,103110.0,0.61689529]
[1737688625153,0.0970238,103120.0,103110.0,0.64702865]
[1737688625338,0.0970238,103120.0,103110.0,0.35608037]
[1737688625576,0.0970238,103120.0,103110.0,0.32594729]
[1737688626489,0.0970238,103120.0,103110.0,0.42293029]
[1737688626885,0.0980238,103120.0,103110.0,0.42293029]
[1737688627331,0.0010498,103120.0,103110.0,0.42293029]
[1737688627736,0.0010498,103120.0,103110.0,0.45306502]
[1737688627940,0.0010498,103120.0,103110.0,0.50046502]
[1737688628143,0.0010498,103120.0,103110.0,1.04056502]
[1737688629096,4.98e-05,103120.0,103110.0,1.04056502]
[1737688629965,4.98e-05,103120.0,103110.0,1.04156502]
[1737688631889,4.98e-05,103120.0,103110.0,1.05280502]
[1737688632717,4.98e-05,103120.0,103110.0,0.51270502]
[1737688634056,4.98e-05,103120.0,103110.0,0.5224041]
[1737688634936,4.98e-05,103120.0,103110.0,1.97651188]
[1737688636214,4.98e-05,103120.0,103110.0,1.97751188]
[1737688636828,4.98e-05,103120.0,103110.0,1.97351188]
[1737688637028,4.98e-05,103120.0,103110.0,1.6925041]
[1737688638267,4.98e-05,103120.0,103110.0,2.17351188]
[1737688639052,4.98e-05,103120.0,103110.0,2.28351188]
[1737688639267,4.98e-05,103120.0,103110.0,2.30351188]
[1737688639822,0.00029862,103150.0,103140.0,0.474355]
[1737688640054,0.00029862,103150.0,103140.0,0.9075183]
[1737688640952,0.00029862,103150.0,103140.0,0.9085183]
[1737688642983,0.00029862,103150.0,103140.0,1.4486183]
[1737688643184,0.00029862,103150.0,103140.0,1.4957183]
[1737688643565,0.00029862,103150.0,103140.0,1.6057183]
[1737688643768,0.00029862,103150.0,103140.0,1.6047183]
[1737688643972,0.00029862,103150.0,103140.0,1.62799319]
[1737688644160,0.00029862,103150.0,103140.0,1.63751492]
[1737688644376,0.00029862,103150.0,103140.0,1.63351492]
[1737688644579,0.00029862,103150.0,103140.0,1.63951492]
[1737688645005,0.00029862,103150.0,103140.0,1.63351492]
[1737688645201,0.00029862,103150.0,103140.0,1.64051492]
[1737688645601,0.00029862,103150.0,103140.0,1.63951492]
[1737688646013,0.00029862,103150.0,103140.0,1.64151492]
[1737688647412,0.00029862,103150.0,103140.0,1.96451492]
[1737688651230,0.00029862,103150.0,103140.0,1.98451492]
[1737688652923,0.00029862,103150.0,103140.0,1.98552086]
[1737688654706,0.00029883,103170.0,103140.0,1.58856586]
[1737688654905,0.00044823,103170.0,103160.0,0.49428329]
[1737688655133,0.00044823,103170.0,103160.0,0.8413393]
[1737688657111,0.00044823,103170.0,103160.0,0.8473393]
[1737688657550,0.00044823,103170.0,103160.0,0.5472993]
[1737688657758,0.04814823,103170.0,103160.0,0.5472993]
[1737688657962,0.04814823,103170.0,103160.0,0.5492993]
[1737688659312,0.00044823,103170.0,103160.0,1.4647993]
[1737688660120,0.00044823,103170.0,103160.0,1.3893993]
[1737688661035,0.096919,103180.0,103170.0,0.00055771]
[1737688661253,0.096919,103180.0,103170.0,0.12803973]
[1737688661899,0.32963987,103180.0,103170.0,0.12803973]
[1737688662106,0.35263987,103180.0,103170.0,0.12803973]
[1737688662312,0.35263987,103180.0,103170.0,0.098905]
[1737688662708,0.35263987,103180.0,103170.0,0.097905]
[1737688663322,0.35263987,103180.0,103170.0,0.101905]
[1737688663523,0.35263987,103180.0,103170.0,0.097905]
[1737688664140,0.36211375,103180.0,103170.0,0.097905]
[1737688664338,0.36211375,103180.0,103170.0,0.098905]
[1737688664944,0.36211375,103180.0,103170.0,0.12904108]
[1737688669764,0.36155604,103180.0,103170.0,0.12848337]
[1737688673761,0.36155604,103180.0,103170.0,0.03113608]
[1737688674967,0.36155604,103180.0,103170.0,0.03127828]
[1737688675235,0.36185466,103180.0,103170.0,0.03127828]
[1737688676505,0.36185466,103180.0,103170.0,0.0011422]
[1737688679556,0.38134763,103180.0,103170.0,0.0011422]
[1737688680583,0.36185466,103180.0,103170.0,0.0011422]
[1737688681881,0.46997553,103180.0,103170.0,0.0011422]
[1737688682300,0.47991946,103180.0,103170.0,0.0011422]
[1737688682903,0.92456675,103180.0,103170.0,2e-07]
[1737688683282,0.91462282,103180.0,103170.0,2e-07]
[1737688683458,0.91762282,103180.0,103170.0,2e-07]
[1737688683878,0.91962282,103180.0,103170.0,2e-07]
[1737688686990,0.98197459,103180.0,103170.0,2e-07]
[1737688687210,0.096955,103140.0,103130.0,0.16752521]
[1737688687417,0.22807587,103140.0,103130.0,0.1842725]
[1737688687620,0.22807587,103140.0,103130.0,0.09734729]
[1737688688067,0.38179674,103140.0,103130.0,0.09734729]
[1737688688474,0.38189317,103140.0,103130.0,0.09934729]
[1737688688856,0.2737723,103140.0,103130.0,0.09934729]
[1737688689264,0.2737723,103140.0,103130.0,0.10534729]
[1737688689570,0.2737723,103140.0,103130.0,0.09734729]
[1737688689981,0.2737723,103140.0,103130.0,0.10034729]
[1737688690392,0.2737723,103140.0,103130.0,0.09834729]
[1737688690818,0.2737723,103140.0,103130.0,0.09934729]
[1737688693825,0.28349701,103140.0,103130.0,0.09934729]
[1737688695816,0.39161788,103140.0,103130.0,0.09934729]
[1737688696034,0.40456752,103140.0,103130.0,0.002]
[1737688696242,0.47371788,103140.0,103130.0,0.002]
[1737688696655,0.119964,103130.0,103120.0,0.0001422]
[1737688696864,0.35308487,103130.0,103120.0,2e-07]
[1737688696993,0.58849696,103130.0,103120.0,2e-07]
[1737688698024,0.90585303,103130.0,103120.0,2e-07]
[1737688698240,0.120002,103090.0,103080.0,0.08706751]
[1737688698441,0.22812287,103090.0,103080.0,0.08706751]
[1737688698653,0.33624374,103090.0,103080.0,0.08706751]
[1737688699078,0.22812287,103090.0,103080.0,0.08706751]
[1737688699278,0.33624374,103090.0,103080.0,0.08706751]
[1737688699490,0.33624374,103090.0,103080.0,0.00064067]
[1737688699691,0.22812287,103090.0,103080.0,0.00064067]
[1737688700090,0.22912287,103090.0,103080.0,0.00664067]
[1737688700304,0.35724374,103090.0,103080.0,0.00864067]
[1737688700510,0.35724374,103090.0,103080.0,0.00264067]
[1737688700511,0.65623683,103090.0,103080.0,0.00264067]
[1737688700718,0.59223496,103090.0,103080.0,0.00064067]
[1737688701126,0.57223496,103090.0,103080.0,0.00164067]
[1737688701336,0.59223496,103090.0,103080.0,6.7e-07]
[1737688701541,0.120012,103080.0,103070.0,3e-07]
[1737688701753,0.35625374,103080.0,103070.0,0.0001497]
[1737688702962,0.36425374,103080.0,103070.0,0.0011497]
[1737688703336,0.34425374,103080.0,103070.0,0.0011497]
[1737688703545,0.23613287,103080.0,103070.0,0.0011497]
[1737688703910,0.34425374,103080.0,103070.0,0.0011497]
[1737688704117,0.34725374,103080.0,103070.0,0.0011497]
[1737688705533,0.35714082,103080.0,103070.0,0.0011497]
[1737688706879,0.36708475,103080.0,103070.0,0.0011497]
[1737688707086,0.48427504,103080.0,103070.0,0.0011497]
[1737688707260,0.48443204,103080.0,103070.0,0.0011497]
[1737688708074,0.46443204,103080.0,103070.0,7e-07]
[1737688709295,0.48443204,103080.0,103070.0,7e-07]
[1737688709598,0.46443204,103080.0,103070.0,7e-07]
[1737688710548,0.35631117,103080.0,103070.0,9e-07]
[1737688711911,0.34636724,103080.0,103070.0,9e-07]
[1737688712112,0.45448811,103080.0,103070.0,9e-07]
[1737688714549,0.48443204,103080.0,103070.0,9e-07]
[1737688716190,0.46443204,103080.0,103070.0,9e-07]
[1737688716652,0.14996493,103070.0,103060.0,0.000103]
[1737688716857,0.46355396,103070.0,103060.0,0.00025245]
[1737688717382,0.35543309,103070.0,103060.0,0.00025245]
[1737688718210,0.023,103060.0,103050.0,0.01561361]
[1737688718420,0.33627174,103060.0,103050.0,0.01566341]
[1737688719747,0.36921567,103060.0,103050.0,4.1e-07]
[1737688720642,0.46656296,103060.0,103050.0,4.1e-07]
[1737688722023,0.47605553,103060.0,103050.0,4.1e-07]
[1737688722230,0.47605553,103060.0,103040.0,0.00010271]
[1737688722231,0.14004,103050.0,103040.0,0.00010271]
[1737688722417,0.35628174,103050.0,103040.0,0.00025181]
[1737688723278,0.45838174,103050.0,103040.0,0.00025181]
[1737688723499,0.35628174,103050.0,103040.0,0.00025181]
[1737688725146,0.41449174,103050.0,103040.0,0.00125181]
[1737688725341,0.35628174,103050.0,103040.0,0.00125181]
[1737688727203,0.45362903,103050.0,103040.0,0.00125181]
[1737688727422,0.097059,103030.0,103020.0,0.0818421]
[1737688727631,0.33630074,103030.0,103020.0,0.08189173]
[1737688728287,0.22817987,103030.0,103020.0,0.08189173]
[1737688728715,0.22817987,103030.0,103020.0,0.32923902]
[1737688728923,0.23017987,103030.0,103020.0,0.37793902]
[1737688729333,0.20717987,103030.0,103020.0,0.37793902]
[1737688729542,0.23017987,103030.0,103020.0,0.23189173]
[1737688731401,0.23117987,103030.0,103020.0,0.23189173]
[1737688733622,0.23117987,103030.0,103020.0,0.26207428]
[1737688734160,0.20817987,103030.0,103020.0,0.35942157]
[1737688734368,0.21769541,103030.0,103020.0,0.40532157]
[1737688735083,0.100059,103030.0,103020.0,0.40532157]
[1737688735619,0.20817987,103030.0,103020.0,0.40532157]
[1737688736857,0.23117987,103030.0,103020.0,0.30797428]
[1737688737050,0.20817987,103030.0,103020.0,0.40532157]
[1737688738977,0.23117987,103030.0,103020.0,0.26207428]
[1737688739737,0.27001187,103030.0,103020.0,0.26207428]
[1737688743067,0.24701187,103030.0,103020.0,0.35942157]
[1737688743294,0.138891,103030.0,103020.0,0.35942157]
[1737688743499,0.27001187,103030.0,103020.0,0.35942157]
[1737688745121,0.064832,103030.0,103020.0,0.45648957]
[1737688745324,0.003,103030.0,103020.0,0.45648957]
[1737688745527,0.003,103030.0,103020.0,0.81177085]
[1737688745873,0.026,103030.0,103020.0,0.81177085]
[1737688746081,0.003,103030.0,103020.0,0.81177085]
[1737688746491,0.003,103030.0,103020.0,1.11177085]
[1737688746757,0.00229904,103030.0,103020.0,1.11177085]
[1737688747295,0.00029904,103030.0,103020.0,1.11177085]
[1737688747502,0.09734404,103050.0,103040.0,0.371349]
[1737688747503,0.00029904,103050.0,103040.0,0.371349]
[1737688747696,0.00029904,103050.0,103040.0,0.80456012]
[1737688748675,0.00029904,103050.0,103040.0,0.80556012]
[1737688748877,0.00029904,103050.0,103040.0,0.80456012]
[1737688749258,0.00029904,103050.0,103040.0,0.80856012]
[1737688749692,0.00952054,103070.0,103040.0,1.01151112]
[1737688749922,0.48538383,103080.0,103070.0,0.2255]
[1737688749923,0.29134783,103080.0,103070.0,0.2255]
[1737688750153,0.29134783,103080.0,103070.0,0.32284729]
[1737688750304,0.4224687,103080.0,103070.0,0.3530275]
[1737688750522,0.02329883,103080.0,103070.0,0.4500485]
[1737688750725,0.00029883,103080.0,103070.0,0.4500485]
[1737688751064,0.09731083,103080.0,103070.0,0.4500485]
[1737688751193,0.12031083,103080.0,103070.0,0.4500485]
[1737688751392,0.12331083,103080.0,103070.0,0.4500485]
[1737688752596,0.12331083,103080.0,103070.0,0.32284729]
[1737688753741,0.12331083,103080.0,103070.0,0.41986829]
[1737688753944,0.00329883,103080.0,103070.0,0.71986829]
[1737688754230,0.00329883,103080.0,103070.0,0.79606756]
[1737688754761,0.00229883,103080.0,103070.0,0.79606756]
[1737688755197,0.00029883,103080.0,103070.0,0.79706756]
[1737688755512,0.00029883,103080.0,103070.0,0.76996829]
[1737688758389,0.00029883,103080.0,103070.0,1.41006829]
[1737688760406,0.00029883,103080.0,103070.0,1.31006829]
[1737688760615,0.00029883,103080.0,103070.0,1.01006829]
[1737688763286,0.00029883,103080.0,103070.0,0.46996829]
[1737688765252,0.00029883,103080.0,103070.0,0.76996829]
[1737688766520,0.00029883,103080.0,103070.0,0.79995428]
[1737688767287,0.00029883,103080.0,103070.0,1.34005428]
[1737688767700,0.484899,103120.0,103100.0,0.523874]
[1737688767840,0.29143682,103120.0,103110.0,0.09734729]
[1737688768423,0.31443682,103120.0,103110.0,0.09734729]
[1737688769900,0.31443682,103120.0,103110.0,0.09834729]
[1737688769901,0.42255769,103120.0,103110.0,0.09834729]
[1737688771144,0.42255769,103120.0,103110.0,0.09734729]
[1737688771505,0.42455769,103120.0,103110.0,0.09734729]
[1737688772132,0.12347882,103120.0,103110.0,0.09734729]
[1737688772334,0.02649782,103120.0,103110.0,0.34433029]
[1737688772959,0.02549782,103120.0,103110.0,0.34433029]
[1737688773165,0.12047182,103120.0,103110.0,0.24734729]
[1737688774091,0.12047182,103120.0,103110.0,0.25134729]
[1737688775295,0.12047182,103120.0,103110.0,0.25234729]
[1737688775803,0.12047182,103120.0,103110.0,0.25134729]
[1737688776298,0.12047182,103120.0,103110.0,0.24734729]
[1737688776692,0.12047182,103120.0,103110.0,0.25134729]
[1737688776858,0.12047182,103120.0,103110.0,0.24734729]
[1737688777056,0.12047182,103120.0,103110.0,0.24834729]
[1737688779190,0.22859269,103120.0,103110.0,0.24834729]
[1737688780463,0.22859269,103120.0,103110.0,0.24734729]
[1737688780870,0.22859269,103120.0,103110.0,0.24834729]
[1737688781073,0.20289386,103120.0,103110.0,0.24734729]
[1737688781525,0.20489386,103120.0,103110.0,0.24734729]
[1737688782147,0.20589386,103120.0,103110.0,0.24734729]
[1737688782983,0.22919269,103120.0,103110.0,0.24734729]
[1737688783182,0.23913427,103120.0,103110.0,0.24734729]
[1737688786356,0.23913427,103120.0,103110.0,0.27754929]
[1737688786557,0.23913427,103120.0,103110.0,0.24734729]
[1737688787261,0.23913427,103120.0,103110.0,0.27755466]
[1737688787493,0.28743427,103120.0,103110.0,0.27755466]
[1737688791741,0.28743427,103120.0,103110.0,0.18020737]
[1737688792003,0.28743427,103120.0,103110.0,0.15]
[1737688792746,0.39555514,103120.0,103110.0,0.15]
[1737688792982,0.47105514,103120.0,103110.0,0.15]
[1737688794241,0.47105514,103120.0,103110.0,0.1501422]
[1737688802224,0.28743427,103120.0,103110.0,0.1501422]
[1737688802384,0.21613427,103120.0,103110.0,0.1501422]
[1737688803091,0.23913427,103120.0,103110.0,0.1501422]
[1737688803882,0.34725514,103120.0,103110.0,0.1501422]
[1737688804099,0.23913427,103120.0,103110.0,0.1501422]
[1737688805014,0.1080134,103120.0,103110.0,0.32788949]
[1737688805212,0.09807182,103120.0,103110.0,0.32788949]
[1737688806321,0.09807182,103120.0,103110.0,0.45507778]
[1737688806545,0.09807182,103120.0,103110.0,0.35809478]
[1737688806772,0.09707182,103120.0,103110.0,0.35809478]
[1737688807054,0.09507182,103120.0,103110.0,0.35809478]
[1737688807281,0.09507182,103120.0,103110.0,0.35909478]
[1737688807881,0.00029883,103120.0,103110.0,0.45607778]